[Event "Titled Tuesday Blitz July 25 Late 2023"]
[White "Ganiev, Roman"]
[Black "Alahakoon, Isuru"]
[WhiteFideId "4131452"]
[BlackFideId "9900993"]
[WhiteElo "2526"]
[BlackElo "2343"]
[Result "0-1"]
[Round "3"]
[TimeControl "180+2"]
[Date "2023.07.25"]
[WhiteClock "0:00:58"]
[BlackClock "0:01:00"]
[Board "150"]

1. e4 {[%clk 0:03:00]}  d5 {[%clk 0:02:59]} 2. exd5 {[%clk 0:03:00]}  Qxd5 {[%clk 0:03:00]} 3. Nc3 {[%clk 0:03:01]}  Qa5 {[%clk 0:03:01]} 4. d4 {[%clk 0:03:01]}  Nf6 {[%clk 0:03:01]} 5. Nf3 {[%clk 0:02:57]}  Bg4 {[%clk 0:03:01]} 6. h3 {[%clk 0:02:57]}  Bh5 {[%clk 0:03:01]} 7. Bc4 {[%clk 0:02:57]}  Nc6 {[%clk 0:03:00]} 8. g4 {[%clk 0:02:57]}  Bg6 {[%clk 0:02:59]} 9. Be3 {[%clk 0:02:57]}  O-O-O {[%clk 0:02:58]} 10. Qd2 {[%clk 0:02:47]}  e5 {[%clk 0:02:55]} 11. d5 {[%clk 0:02:47]}  Bb4 {[%clk 0:02:55]} 12. O-O-O {[%clk 0:02:30]}  Ne4 {[%clk 0:02:54]} 13. Nxe4 {[%clk 0:02:23]}  Bxd2+ {[%clk 0:02:51]} 14. Bxd2 {[%clk 0:02:24]}  Qa4 {[%clk 0:02:01]} 15. Bb3 {[%clk 0:01:56]}  Qxe4 {[%clk 0:02:01]} 16. Ng5 {[%clk 0:01:57]}  Qe2 {[%clk 0:01:35]} 17. dxc6 {[%clk 0:01:44]}  bxc6 {[%clk 0:01:31]} 18. Bxf7 {[%clk 0:01:35]}  Bxf7 {[%clk 0:01:24]} 19. Nxf7 {[%clk 0:01:36]}  Qc4 {[%clk 0:01:24]} 20. Nxd8 {[%clk 0:01:35]}  Qxa2 {[%clk 0:01:25]} 21. Bc3 {[%clk 0:01:26]}  Qa1+ {[%clk 0:01:23]} 22. Kd2 {[%clk 0:01:26]}  Rxd8+ {[%clk 0:01:23]} 23. Ke2 {[%clk 0:01:26]}  Qa6+ {[%clk 0:01:22]} 24. Ke3 {[%clk 0:01:24]}  Qb6+ {[%clk 0:01:17]} 25. Ke2 {[%clk 0:01:22]}  Rf8 {[%clk 0:01:11]} 26. Rhf1 {[%clk 0:01:17]}  Qb5+ {[%clk 0:01:10]} 27. Ke1 {[%clk 0:01:15]}  Qc4 {[%clk 0:01:05]} 28. Rd3 {[%clk 0:01:15]}  Qe4+ {[%clk 0:01:04]} 29. Re3 {[%clk 0:01:15]}  Qxc2 {[%clk 0:01:04]} 30. Rxe5 {[%clk 0:00:58]}  Rd8 {[%clk 0:01:00]} 0-1


[Site "https://www.chess.com"]

[Event "Titled Tuesday Blitz July 25 Late 2023"]
[White "Machidon, Cristi"]
[Black "kiwibobo"]
[WhiteFideId "13904590"]
[WhiteElo "2512"]
[BlackElo "2336"]
[Result "1-0"]
[Round "3"]
[TimeControl "180+2"]
[Date "2023.07.25"]
[WhiteClock "0:00:34"]
[BlackClock "0:00:00"]
[Board "152"]

1. d4 {[%clk 0:02:59]}  Nf6 {[%clk 0:03:00]} 2. c4 {[%clk 0:02:57]}  g6 {[%clk 0:03:00]} 3. Nc3 {[%clk 0:02:57]}  d5 {[%clk 0:03:01]} 4. Nf3 {[%clk 0:02:55]}  Bg7 {[%clk 0:03:00]} 5. Bf4 {[%clk 0:02:56]}  O-O {[%clk 0:02:59]} 6. e3 {[%clk 0:02:55]}  c5 {[%clk 0:02:59]} 7. dxc5 {[%clk 0:02:54]}  Qa5 {[%clk 0:02:59]} 8. Rc1 {[%clk 0:02:55]}  dxc4 {[%clk 0:02:59]} 9. Bxc4 {[%clk 0:02:54]}  Qxc5 {[%clk 0:02:58]} 10. Bb3 {[%clk 0:02:54]}  Nc6 {[%clk 0:02:58]} 11. O-O {[%clk 0:02:54]}  Qa5 {[%clk 0:02:58]} 12. Qe2 {[%clk 0:02:52]}  Bf5 {[%clk 0:02:54]} 13. h3 {[%clk 0:02:36]}  Ne4 {[%clk 0:02:35]} 14. Nd5 {[%clk 0:02:17]}  e5 {[%clk 0:02:22]} 15. Bh2 {[%clk 0:02:13]}  Nf6 {[%clk 0:02:13]} 16. Rxc6 {[%clk 0:01:51]}  Nxd5 {[%clk 0:01:48]} 17. Rcc1 {[%clk 0:01:31]}  Nb4 {[%clk 0:01:45]} 18. e4 {[%clk 0:01:28]}  Bd7 {[%clk 0:01:41]} 19. Rfd1 {[%clk 0:01:23]}  Bb5 {[%clk 0:01:28]} 20. Qe1 {[%clk 0:01:22]}  Rac8 {[%clk 0:01:19]} 21. Bxe5 {[%clk 0:01:14]}  Nc6 {[%clk 0:01:03]} 22. Bxg7 {[%clk 0:01:11]}  Kxg7 {[%clk 0:01:00]} 23. Qe3 {[%clk 0:01:11]}  Qb6 {[%clk 0:00:48]} 24. Qxb6 {[%clk 0:01:07]}  axb6 {[%clk 0:00:49]} 25. Rd7 {[%clk 0:01:00]}  Ne5 {[%clk 0:00:26]} 26. Rxc8 {[%clk 0:00:52]}  Nxd7 {[%clk 0:00:19]} 27. Rc7 {[%clk 0:00:49]}  Nc5 {[%clk 0:00:18]} 28. Bd5 {[%clk 0:00:47]}  Kf6 {[%clk 0:00:13]} 29. e5+ {[%clk 0:00:44]}  Kg7 {[%clk 0:00:09]} 30. Ng5 {[%clk 0:00:42]}  Be8 {[%clk 0:00:06]} 31. b4 {[%clk 0:00:41]}  Nd7 {[%clk 0:00:05]} 32. e6 {[%clk 0:00:39]}  Ne5 {[%clk 0:00:02]} 33. exf7 {[%clk 0:00:36]}  Nxf7 {[%clk 0:00:02]} 34. Ne6+ {[%clk 0:00:35]}  Kg8 {[%clk 0:00:02]} 35. Nxf8 {[%clk 0:00:35]}  Kxf8 {[%clk 0:00:00]} 36. Rxb7 {[%clk 0:00:34]} 1-0


[Site "https://www.chess.com"]

[Event "Titled Tuesday Blitz July 25 Late 2023"]
[White "Awoki, Daniel Teidi"]
[Black "Aggelis, Nikolaos"]
[WhiteFideId "2100827"]
[BlackFideId "4213220"]
[WhiteElo "2325"]
[BlackElo "2609"]
[Result "0-1"]
[Round "3"]
[TimeControl "180+2"]
[Date "2023.07.25"]
[WhiteClock "0:00:01"]
[BlackClock "0:00:33"]
[Board "159"]

1. e4 {[%clk 0:03:00]}  c6 {[%clk 0:02:59]} 2. d4 {[%clk 0:02:57]}  d5 {[%clk 0:02:59]} 3. exd5 {[%clk 0:02:58]}  cxd5 {[%clk 0:03:00]} 4. c4 {[%clk 0:02:59]}  Nf6 {[%clk 0:02:59]} 5. Nc3 {[%clk 0:02:59]}  g6 {[%clk 0:02:58]} 6. cxd5 {[%clk 0:02:58]}  Bg7 {[%clk 0:02:58]} 7. Bc4 {[%clk 0:02:59]}  O-O {[%clk 0:02:58]} 8. Be3 {[%clk 0:02:59]}  a6 {[%clk 0:02:58]} 9. Bb3 {[%clk 0:02:58]}  b5 {[%clk 0:02:58]} 10. a3 {[%clk 0:02:57]}  Bb7 {[%clk 0:02:58]} 11. Nf3 {[%clk 0:02:56]}  Nxd5 {[%clk 0:02:57]} 12. O-O {[%clk 0:02:55]}  Nxc3 {[%clk 0:02:49]} 13. bxc3 {[%clk 0:02:55]}  Nc6 {[%clk 0:02:49]} 14. a4 {[%clk 0:02:48]}  bxa4 {[%clk 0:02:46]} 15. Bxa4 {[%clk 0:02:47]}  Rc8 {[%clk 0:02:45]} 16. Rb1 {[%clk 0:02:41]}  Na5 {[%clk 0:02:42]} 17. Qd3 {[%clk 0:02:19]}  Bxf3 {[%clk 0:02:33]} 18. gxf3 {[%clk 0:02:20]}  Nc4 {[%clk 0:02:19]} 19. Bb3 {[%clk 0:02:13]}  Qc7 {[%clk 0:01:47]} 20. Rfc1 {[%clk 0:02:02]}  Rfd8 {[%clk 0:01:42]} 21. Ra1 {[%clk 0:01:45]}  a5 {[%clk 0:01:33]} 22. Bxc4 {[%clk 0:01:44]}  Qxc4 {[%clk 0:01:30]} 23. Qxc4 {[%clk 0:01:43]}  Rxc4 {[%clk 0:01:31]} 24. Rxa5 {[%clk 0:01:43]}  Rdc8 {[%clk 0:01:29]} 25. Ra3 {[%clk 0:01:36]}  Bxd4 {[%clk 0:01:24]} 26. Bxd4 {[%clk 0:00:57]}  Rxd4 {[%clk 0:01:23]} 27. cxd4 {[%clk 0:00:58]}  Rxc1+ {[%clk 0:01:23]} 28. Kg2 {[%clk 0:00:58]}  Rd1 {[%clk 0:01:22]} 29. Ra4 {[%clk 0:00:55]}  e6 {[%clk 0:01:19]} 30. f4 {[%clk 0:00:42]}  Kg7 {[%clk 0:01:19]} 31. Kg3 {[%clk 0:00:40]}  Rd3+ {[%clk 0:01:13]} 32. Kg2 {[%clk 0:00:36]}  Kf6 {[%clk 0:01:02]} 33. h3 {[%clk 0:00:26]}  h5 {[%clk 0:01:01]} 34. f3 {[%clk 0:00:15]}  Kf5 {[%clk 0:01:00]} 35. Ra7 {[%clk 0:00:14]}  f6 {[%clk 0:00:55]} 36. Kg3 {[%clk 0:00:11]}  Rxd4 {[%clk 0:00:47]} 37. Ra5+ {[%clk 0:00:10]}  Rd5 {[%clk 0:00:48]} 38. Ra4 {[%clk 0:00:06]}  Rb5 {[%clk 0:00:44]} 39. Re4 {[%clk 0:00:06]}  Rb1 {[%clk 0:00:43]} 40. h4 {[%clk 0:00:06]}  Rg1+ {[%clk 0:00:41]} 41. Kf2 {[%clk 0:00:05]}  Rh1 {[%clk 0:00:40]} 42. Kg3 {[%clk 0:00:05]}  Rg1+ {[%clk 0:00:36]} 43. Kf2 {[%clk 0:00:05]}  Rg4 {[%clk 0:00:35]} 44. fxg4+ {[%clk 0:00:03]}  Kxe4 {[%clk 0:00:34]} 45. f5 {[%clk 0:00:02]}  exf5 {[%clk 0:00:33]} 46. gxh5 {[%clk 0:00:02]}  gxh5 {[%clk 0:00:32]} 47. Ke2 {[%clk 0:00:02]}  Kf4 {[%clk 0:00:32]} 48. Kf2 {[%clk 0:00:01]}  Kg4 {[%clk 0:00:33]} 0-1


[Site "https://www.chess.com"]

[Event "Titled Tuesday Blitz July 25 Late 2023"]
[White "morozcoma"]
[Black "Petesch, Gabriel"]
[BlackFideId "2032465"]
[WhiteElo "2318"]
[BlackElo "2580"]
[Result "1/2-1/2"]
[Round "3"]
[TimeControl "180+2"]
[Date "2023.07.25"]
[WhiteClock "0:00:06"]
[BlackClock "0:00:15"]
[Board "161"]

1. e4 {[%clk 0:03:00]}  e5 {[%clk 0:02:54]} 2. Nf3 {[%clk 0:02:51]}  d6 {[%clk 0:02:52]} 3. Nc3 {[%clk 0:02:51]}  Nf6 {[%clk 0:02:48]} 4. d4 {[%clk 0:02:48]}  exd4 {[%clk 0:02:43]} 5. Nxd4 {[%clk 0:02:49]}  Be7 {[%clk 0:02:42]} 6. Bd3 {[%clk 0:02:48]}  a6 {[%clk 0:02:41]} 7. O-O {[%clk 0:02:48]}  O-O {[%clk 0:02:40]} 8. f4 {[%clk 0:02:48]}  Nc6 {[%clk 0:02:34]} 9. Nxc6 {[%clk 0:02:44]}  bxc6 {[%clk 0:02:35]} 10. Qf3 {[%clk 0:02:44]}  Be6 {[%clk 0:02:28]} 11. h3 {[%clk 0:02:43]}  Rb8 {[%clk 0:02:16]} 12. b3 {[%clk 0:02:42]}  Nd7 {[%clk 0:01:59]} 13. Bb2 {[%clk 0:02:41]}  Bf6 {[%clk 0:01:58]} 14. Rae1 {[%clk 0:02:39]}  Re8 {[%clk 0:01:47]} 15. Bxa6 {[%clk 0:02:04]}  Nc5 {[%clk 0:01:32]} 16. Bd3 {[%clk 0:01:57]}  Rb4 {[%clk 0:01:22]} 17. a3 {[%clk 0:01:34]}  Nxd3 {[%clk 0:01:14]} 18. Qxd3 {[%clk 0:01:34]}  Bc4 {[%clk 0:01:10]} 19. Qf3 {[%clk 0:01:19]}  Bd4+ {[%clk 0:01:02]} 20. Kh2 {[%clk 0:01:15]}  Rb8 {[%clk 0:01:03]} 21. Rf2 {[%clk 0:01:06]}  Bxf2 {[%clk 0:00:42]} 22. Qxf2 {[%clk 0:01:07]}  c5 {[%clk 0:00:38]} 23. Qg3 {[%clk 0:00:59]}  f6 {[%clk 0:00:36]} 24. e5 {[%clk 0:00:50]}  dxe5 {[%clk 0:00:30]} 25. fxe5 {[%clk 0:00:51]}  Bf7 {[%clk 0:00:26]} 26. Ne4 {[%clk 0:00:47]}  fxe5 {[%clk 0:00:22]} 27. Bxe5 {[%clk 0:00:45]}  Bg6 {[%clk 0:00:22]} 28. Bxc7 {[%clk 0:00:39]}  Qd4 {[%clk 0:00:15]} 29. c3 {[%clk 0:00:33]}  Rxb3 {[%clk 0:00:12]} 30. cxd4 {[%clk 0:00:18]}  Rxg3 {[%clk 0:00:13]} 31. Kxg3 {[%clk 0:00:17]}  cxd4 {[%clk 0:00:12]} 32. Kf4 {[%clk 0:00:16]}  d3 {[%clk 0:00:10]} 33. Ba5 {[%clk 0:00:16]}  Ra8 {[%clk 0:00:06]} 34. Bb4 {[%clk 0:00:16]}  h6 {[%clk 0:00:05]} 35. g4 {[%clk 0:00:15]}  Re8 {[%clk 0:00:03]} 36. Nf2 {[%clk 0:00:15]}  Re2 {[%clk 0:00:02]} 37. Rxe2 {[%clk 0:00:14]}  dxe2 {[%clk 0:00:02]} 38. Ke3 {[%clk 0:00:15]}  h5 {[%clk 0:00:01]} 39. Kxe2 {[%clk 0:00:15]}  hxg4 {[%clk 0:00:02]} 40. hxg4 {[%clk 0:00:15]}  Be8 {[%clk 0:00:02]} 41. Ke3 {[%clk 0:00:16]}  Kf7 {[%clk 0:00:03]} 42. Kf4 {[%clk 0:00:16]}  Kg6 {[%clk 0:00:04]} 43. Nd3 {[%clk 0:00:16]}  Ba4 {[%clk 0:00:05]} 44. Ne5+ {[%clk 0:00:17]}  Kf6 {[%clk 0:00:05]} 45. Bc3 {[%clk 0:00:17]}  Ke6 {[%clk 0:00:05]} 46. Nc4 {[%clk 0:00:17]}  Bb3 {[%clk 0:00:05]} 47. Ne3 {[%clk 0:00:17]}  g6 {[%clk 0:00:06]} 48. Kg5 {[%clk 0:00:17]}  Kf7 {[%clk 0:00:05]} 49. Ng2 {[%clk 0:00:17]}  Bd5 {[%clk 0:00:05]} 50. Nf4 {[%clk 0:00:18]}  Be4 {[%clk 0:00:06]} 51. Kh6 {[%clk 0:00:18]}  Bc2 {[%clk 0:00:06]} 52. g5 {[%clk 0:00:18]}  Bf5 {[%clk 0:00:05]} 53. Bf6 {[%clk 0:00:19]}  Bc2 {[%clk 0:00:05]} 54. a4 {[%clk 0:00:19]}  Bxa4 {[%clk 0:00:05]} 55. Nxg6 {[%clk 0:00:19]}  Bc2 {[%clk 0:00:06]} 56. Ne5+ {[%clk 0:00:19]}  Ke6 {[%clk 0:00:06]} 57. Nf3 {[%clk 0:00:20]}  Bb1 {[%clk 0:00:05]} 58. Kg7 {[%clk 0:00:20]}  Kf5 {[%clk 0:00:05]} 59. Nd4+ {[%clk 0:00:20]}  Kg4 {[%clk 0:00:06]} 60. Nc6 {[%clk 0:00:19]}  Kh5 {[%clk 0:00:05]} 61. Ne5 {[%clk 0:00:20]}  Bc2 {[%clk 0:00:04]} 62. Nc4 {[%clk 0:00:18]}  Bb1 {[%clk 0:00:03]} 63. Nd2 {[%clk 0:00:19]}  Bc2 {[%clk 0:00:03]} 64. Nf1 {[%clk 0:00:19]}  Bb1 {[%clk 0:00:02]} 65. Ng3+ {[%clk 0:00:19]}  Kg4 {[%clk 0:00:03]} 66. Ne2 {[%clk 0:00:20]}  Bc2 {[%clk 0:00:02]} 67. Be7 {[%clk 0:00:19]}  Bb1 {[%clk 0:00:02]} 68. Kf6 {[%clk 0:00:20]}  Bc2 {[%clk 0:00:03]} 69. Nd4 {[%clk 0:00:17]}  Bb1 {[%clk 0:00:03]} 70. Ne6 {[%clk 0:00:16]}  Bc2 {[%clk 0:00:03]} 71. Ng7 {[%clk 0:00:16]}  Bb1 {[%clk 0:00:03]} 72. g6 {[%clk 0:00:16]}  Bxg6 {[%clk 0:00:03]} 73. Kxg6 {[%clk 0:00:17]}  Kf3 {[%clk 0:00:03]} 74. Kf5 {[%clk 0:00:18]}  Ke3 {[%clk 0:00:02]} 75. Ne6 {[%clk 0:00:17]}  Kd3 {[%clk 0:00:03]} 76. Ke5 {[%clk 0:00:17]}  Ke2 {[%clk 0:00:04]} 77. Kf4 {[%clk 0:00:17]}  Kd3 {[%clk 0:00:04]} 78. Kf3 {[%clk 0:00:17]}  Kc4 {[%clk 0:00:05]} 79. Ke4 {[%clk 0:00:17]}  Kc3 {[%clk 0:00:05]} 80. Bg5 {[%clk 0:00:17]}  Kc4 {[%clk 0:00:06]} 81. Be3 {[%clk 0:00:16]}  Kb5 {[%clk 0:00:06]} 82. Kd5 {[%clk 0:00:16]}  Kb4 {[%clk 0:00:06]} 83. Bd2+ {[%clk 0:00:14]}  Kb3 {[%clk 0:00:07]} 84. Kd4 {[%clk 0:00:13]}  Kc2 {[%clk 0:00:08]} 85. Ke3 {[%clk 0:00:13]}  Kb3 {[%clk 0:00:08]} 86. Kd3 {[%clk 0:00:13]}  Ka4 {[%clk 0:00:09]} 87. Kc4 {[%clk 0:00:13]}  Ka3 {[%clk 0:00:09]} 88. Nd4 {[%clk 0:00:13]}  Kb2 {[%clk 0:00:10]} 89. Kb4 {[%clk 0:00:12]}  Ka2 {[%clk 0:00:09]} 90. Kc3 {[%clk 0:00:06]}  Ka3 {[%clk 0:00:09]} 91. Kc2 {[%clk 0:00:05]}  Ka4 {[%clk 0:00:10]} 92. Bc3 {[%clk 0:00:05]}  Ka3 {[%clk 0:00:11]} 93. Ne6 {[%clk 0:00:04]}  Ka4 {[%clk 0:00:11]} 94. Nc5+ {[%clk 0:00:04]}  Kb5 {[%clk 0:00:12]} 95. Nb3 {[%clk 0:00:04]}  Kc6 {[%clk 0:00:13]} 96. Kd2 {[%clk 0:00:05]}  Kd5 {[%clk 0:00:14]} 97. Kd3 {[%clk 0:00:06]}  Kd6 {[%clk 0:00:14]} 98. Kd4 {[%clk 0:00:06]}  Ke6 {[%clk 0:00:15]} 99. Ke4 {[%clk 0:00:06]}  Kd6 {[%clk 0:00:15]} 100. Bb4+ {[%clk 0:00:06]}  Ke6 {[%clk 0:00:16]} 101. Bd6 {[%clk 0:00:06]}  Kxd6 {[%clk 0:00:15]} 1/2-1/2


[Site "https://www.chess.com"]

[Event "Titled Tuesday Blitz July 25 Late 2023"]
[White "Ordekalog"]
[Black "SicilianPanzer"]
[WhiteElo "2485"]
[BlackElo "2303"]
[Result "1-0"]
[Round "3"]
[TimeControl "180+2"]
[Date "2023.07.25"]
[WhiteClock "0:00:32"]
[BlackClock "0:00:00"]
[Board "167"]

1. d4 {[%clk 0:03:00]}  Nf6 {[%clk 0:02:59]} 2. c4 {[%clk 0:03:00]}  e6 {[%clk 0:02:59]} 3. Nc3 {[%clk 0:02:58]}  Bb4 {[%clk 0:02:58]} 4. Bd2 {[%clk 0:02:58]}  c5 {[%clk 0:02:57]} 5. e3 {[%clk 0:02:57]}  O-O {[%clk 0:02:46]} 6. Nf3 {[%clk 0:02:56]}  b6 {[%clk 0:02:45]} 7. Bd3 {[%clk 0:02:54]}  Bb7 {[%clk 0:02:44]} 8. O-O {[%clk 0:02:52]}  Nc6 {[%clk 0:02:37]} 9. d5 {[%clk 0:02:50]}  Ne7 {[%clk 0:02:32]} 10. e4 {[%clk 0:02:48]}  Ng6 {[%clk 0:02:26]} 11. e5 {[%clk 0:02:44]}  Ng4 {[%clk 0:02:13]} 12. a3 {[%clk 0:02:39]}  Bxc3 {[%clk 0:01:34]} 13. Bxc3 {[%clk 0:02:38]}  exd5 {[%clk 0:01:02]} 14. cxd5 {[%clk 0:02:37]}  Nf4 {[%clk 0:01:02]} 15. h3 {[%clk 0:02:18]}  Nh6 {[%clk 0:00:55]} 16. Be4 {[%clk 0:01:56]}  d6 {[%clk 0:00:48]} 17. exd6 {[%clk 0:01:49]}  Re8 {[%clk 0:00:42]} 18. Be5 {[%clk 0:01:40]}  Ng6 {[%clk 0:00:37]} 19. Bxg6 {[%clk 0:01:39]}  hxg6 {[%clk 0:00:36]} 20. Qd3 {[%clk 0:01:28]}  Nf5 {[%clk 0:00:24]} 21. Rfe1 {[%clk 0:01:00]}  Nxd6 {[%clk 0:00:21]} 22. Rad1 {[%clk 0:00:53]}  Qd7 {[%clk 0:00:18]} 23. Qc3 {[%clk 0:00:50]}  f6 {[%clk 0:00:16]} 24. Bf4 {[%clk 0:00:45]}  Ne4 {[%clk 0:00:12]} 25. Qc4 {[%clk 0:00:43]}  Nd6 {[%clk 0:00:12]} 26. Qb3 {[%clk 0:00:40]}  Ba6 {[%clk 0:00:10]} 27. Re6 {[%clk 0:00:37]}  Nf7 {[%clk 0:00:02]} 28. Rde1 {[%clk 0:00:35]}  Bb7 {[%clk 0:00:02]} 29. d6 {[%clk 0:00:33]}  Bc6 {[%clk 0:00:02]} 30. Re7 {[%clk 0:00:33]}  Qd8 {[%clk 0:00:00]} 31. Qxf7+ {[%clk 0:00:32]} 1-0


[Site "https://www.chess.com"]

[Event "Titled Tuesday Blitz July 25 Late 2023"]
[White "Tsyhanchuk, Stanislav"]
[Black "ZugZwang1201"]
[WhiteFideId "13505130"]
[WhiteElo "2302"]
[BlackElo "2483"]
[Result "1-0"]
[Round "3"]
[TimeControl "180+2"]
[Date "2023.07.25"]
[WhiteClock "0:00:04"]
[BlackClock "0:00:02"]
[Board "168"]

1. c4 {[%clk 0:03:00]}  c5 {[%clk 0:03:00]} 2. Nc3 {[%clk 0:03:01]}  e6 {[%clk 0:03:00]} 3. e4 {[%clk 0:03:00]}  a6 {[%clk 0:03:00]} 4. Nge2 {[%clk 0:02:54]}  Qc7 {[%clk 0:03:00]} 5. d4 {[%clk 0:02:53]}  cxd4 {[%clk 0:03:01]} 6. Nxd4 {[%clk 0:02:54]}  Nf6 {[%clk 0:03:02]} 7. Be2 {[%clk 0:02:51]}  Be7 {[%clk 0:03:01]} 8. O-O {[%clk 0:02:50]}  d6 {[%clk 0:03:01]} 9. Be3 {[%clk 0:02:49]}  Nbd7 {[%clk 0:03:01]} 10. Rc1 {[%clk 0:02:49]}  h5 {[%clk 0:03:01]} 11. b4 {[%clk 0:02:47]}  h4 {[%clk 0:03:01]} 12. h3 {[%clk 0:02:46]}  g6 {[%clk 0:02:59]} 13. Nf3 {[%clk 0:02:41]}  Ne5 {[%clk 0:02:51]} 14. Nxe5 {[%clk 0:02:38]}  dxe5 {[%clk 0:02:52]} 15. c5 {[%clk 0:02:38]}  Nh5 {[%clk 0:02:50]} 16. Bxh5 {[%clk 0:02:34]}  Rxh5 {[%clk 0:02:51]} 17. b5 {[%clk 0:02:25]}  Qa5 {[%clk 0:02:42]} 18. a4 {[%clk 0:02:18]}  Bd7 {[%clk 0:02:39]} 19. Qd3 {[%clk 0:02:07]}  Rd8 {[%clk 0:02:28]} 20. Qc4 {[%clk 0:02:05]}  f5 {[%clk 0:02:15]} 21. c6 {[%clk 0:01:59]}  bxc6 {[%clk 0:02:15]} 22. bxc6 {[%clk 0:02:00]}  Bc8 {[%clk 0:02:16]} 23. exf5 {[%clk 0:01:52]}  gxf5 {[%clk 0:02:13]} 24. Rfd1 {[%clk 0:01:46]}  Rxd1+ {[%clk 0:02:06]} 25. Rxd1 {[%clk 0:01:47]}  Qb4 {[%clk 0:01:55]} 26. Qxb4 {[%clk 0:01:23]}  Bxb4 {[%clk 0:01:56]} 27. c7 {[%clk 0:01:23]}  Bd7 {[%clk 0:00:53]} 28. Na2 {[%clk 0:01:07]}  Ba5 {[%clk 0:00:49]} 29. Rc1 {[%clk 0:01:04]}  Bc8 {[%clk 0:00:50]} 30. Rc5 {[%clk 0:00:58]}  Bb6 {[%clk 0:00:46]} 31. Rc4 {[%clk 0:00:45]}  Bxe3 {[%clk 0:00:31]} 32. fxe3 {[%clk 0:00:45]}  Rh7 {[%clk 0:00:32]} 33. a5 {[%clk 0:00:35]}  Kd7 {[%clk 0:00:32]} 34. Nb4 {[%clk 0:00:35]}  Kd6 {[%clk 0:00:32]} 35. Rc6+ {[%clk 0:00:35]}  Kd7 {[%clk 0:00:31]} 36. Kf2 {[%clk 0:00:33]}  e4 {[%clk 0:00:29]} 37. Rc2 {[%clk 0:00:18]}  Kd6 {[%clk 0:00:29]} 38. Rc6+ {[%clk 0:00:18]}  Ke5 {[%clk 0:00:29]} 39. Rc5+ {[%clk 0:00:18]}  Kf6 {[%clk 0:00:29]} 40. Rc6 {[%clk 0:00:13]}  Rd7 {[%clk 0:00:26]} 41. Ke2 {[%clk 0:00:12]}  Ke7 {[%clk 0:00:24]} 42. Nxa6 {[%clk 0:00:11]}  Bxa6+ {[%clk 0:00:24]} 43. Rxa6 {[%clk 0:00:11]}  Rxc7 {[%clk 0:00:25]} 44. Rb6 {[%clk 0:00:12]}  Rc2+ {[%clk 0:00:24]} 45. Kf1 {[%clk 0:00:12]}  Ra2 {[%clk 0:00:19]} 46. a6 {[%clk 0:00:12]}  Kf6 {[%clk 0:00:20]} 47. Rc6 {[%clk 0:00:12]}  Ke5 {[%clk 0:00:20]} 48. Rc5+ {[%clk 0:00:10]}  Kd6 {[%clk 0:00:20]} 49. Rc8 {[%clk 0:00:10]}  Rxa6 {[%clk 0:00:20]} 50. Rh8 {[%clk 0:00:11]}  Ra1+ {[%clk 0:00:20]} 51. Kf2 {[%clk 0:00:11]}  Ra2+ {[%clk 0:00:21]} 52. Kf1 {[%clk 0:00:11]}  Ra3 {[%clk 0:00:21]} 53. Kf2 {[%clk 0:00:09]}  Ra2+ {[%clk 0:00:21]} 54. Kf1 {[%clk 0:00:09]}  Ke5 {[%clk 0:00:22]} 55. Rxh4 {[%clk 0:00:09]}  Kf6 {[%clk 0:00:23]} 56. Rh6+ {[%clk 0:00:09]}  Ke5 {[%clk 0:00:22]} 57. g4 {[%clk 0:00:08]}  Rh2 {[%clk 0:00:20]} 58. g5 {[%clk 0:00:07]}  Ra2 {[%clk 0:00:15]} 59. Rh8 {[%clk 0:00:05]}  Kd5 {[%clk 0:00:13]} 60. g6 {[%clk 0:00:05]}  Ra7 {[%clk 0:00:12]} 61. Rd8+ {[%clk 0:00:05]}  Ke5 {[%clk 0:00:12]} 62. h4 {[%clk 0:00:05]}  Kf6 {[%clk 0:00:12]} 63. h5 {[%clk 0:00:05]}  Kg7 {[%clk 0:00:11]} 64. Re8 {[%clk 0:00:03]}  Kh6 {[%clk 0:00:11]} 65. Rh8+ {[%clk 0:00:04]}  Kg5 {[%clk 0:00:11]} 66. Rh7 {[%clk 0:00:04]}  Ra1+ {[%clk 0:00:10]} 67. Ke2 {[%clk 0:00:04]}  Kf6 {[%clk 0:00:10]} 68. Rf7+ {[%clk 0:00:04]}  Ke5 {[%clk 0:00:09]} 69. g7 {[%clk 0:00:05]}  Rg1 {[%clk 0:00:09]} 70. h6 {[%clk 0:00:04]}  Rg2+ {[%clk 0:00:02]} 71. Kf1 {[%clk 0:00:04]} 1-0


[Site "https://www.chess.com"]